bitfinex-derivatives/quotes_ETHF0:USTF0_20251006
["timestamp","ask_amount","ask_price","bid_price","bid_amount"]
[1759780251297,0.38275,4700.0,4699.9,0.81105]
[1759780251488,0.38274,4700.2,4699.9,0.5107]
[1759780251693,0.38274,4700.2,4700.1,0.7298]
[1759780252696,0.38274,4700.2,4700.1,1.11254]
[1759780253091,0.38274,4700.2,4700.1,0.7298]
[1759780253402,0.57154,4700.2,4700.1,0.7298]
[1759780253894,0.76074,4700.2,4700.1,0.7298]
[1759780254100,1.29202627,4700.2,4700.1,0.7298]
[1759780255100,0.57153,4700.2,4700.1,1.11254]
[1759780256102,0.38273,4700.2,4700.1,1.11254]
[1759780257698,3.2078,4700.3,4700.0,0.1329]
[1759780257699,3.2078,4700.3,4700.2,0.68423]
[1759780257898,3.2078,4700.3,4700.2,1.11253]
[1759780258305,3.2078,4700.3,4700.2,6.11253]
[1759780260098,3.2078,4700.3,4700.2,6.32653]
[1759780262105,3.2078,4700.3,4700.2,0.7298]
[1759780262106,3.96852,4700.3,4700.2,0.7298]
[1759780263904,3.5858,4700.3,4700.2,1.11253]
[1759780264106,3.2078,4700.3,4700.2,1.11253]
[1759780264309,0.38263,4701.4,4701.3,0.7298]
[1759780264707,0.91469815,4701.4,4701.3,0.7298]
[1759780264909,0.91006815,4701.4,4701.3,0.7298]
[1759780265412,0.72086815,4701.4,4701.3,0.7298]
[1759780266304,4.11786815,4701.4,4701.3,0.7298]
[1759780266509,0.38268,4700.8,4700.7,0.5155]
[1759780266714,0.76068,4700.8,4700.7,0.5206]
[1759780267920,0.7607,4700.6,4700.5,0.4344]
[1759780268216,0.7607,4700.6,4700.5,0.6535]
[1759780268516,0.378,4700.6,4700.5,0.8627]
[1759780268910,0.76073,4700.2,4700.1,0.5206]
[1759780269113,0.87893,4700.2,4700.1,0.3015]
[1759780269715,0.76073,4700.2,4700.1,0.5206]
[1759780271412,3.96847,4700.9,4700.8,0.2191]
[1759780271719,4.7149887,4700.9,4700.8,0.3015]
[1759780271919,0.7607,4700.6,4700.5,0.1329]
[1759780272119,1.2922187,4700.6,4700.5,0.352]
[1759780272514,1.2922187,4700.6,4700.5,0.6535]
[1759780275322,0.9095187,4700.6,4700.5,0.8627]
[1759780275525,0.5315187,4700.6,4700.5,0.8627]
[1759780276529,0.7203187,4700.6,4700.5,0.8627]
[1759780277223,0.9095187,4700.6,4700.5,0.6535]
[1759780277526,0.76074,4700.1,4700.0,0.8627]
[1759780278029,0.57154,4700.1,4700.0,0.8627]
[1759780279525,0.38271,4700.4,4700.2,0.38272]
[1759780279728,3.2078,4700.9,4700.0,0.8627]
[1759780279729,3.2078,4700.9,4700.6,0.7187]
[1759780279922,3.2078,4701.4,4701.3,0.7187]
[1759780280128,0.53187903,4701.4,4701.3,0.7187]
[1759780280627,0.38262,4701.6,4701.5,0.5399]
[1759780280924,0.91446134,4701.6,4701.5,0.8424]
[1759780281231,1.10356134,4701.6,4701.5,0.8424]
[1759780282035,1.10356134,4701.6,4701.5,0.20583509]
[1759780282036,1.29266134,4701.6,4701.5,0.20583509]
[1759780282241,0.2208,4700.7,4700.6,0.79889]
[1759780282442,0.2208,4700.9,4700.8,0.79887]
[1759780283333,0.2208,4700.9,4700.8,0.4162]
[1759780284151,0.2208,4700.9,4700.8,0.7187]
[1759780289146,3.2078,4701.3,4701.1,0.4162]
[1759780289448,4.2419,4701.8,4701.7,0.7187]
[1759780289747,4.55973388,4701.8,4701.7,0.7187]
[1759780290449,3.96043388,4701.8,4701.7,0.7187]
[1759780291147,3.9897339,4701.8,4701.7,0.7187]
[1759780291842,0.5611339,4701.8,4701.7,0.7187]
[1759780292046,0.02930002,4701.8,4701.7,0.7187]
[1759780295650,0.00166264,4702.7,4702.6,1.10123]
[1759780295851,0.00166264,4702.7,4702.6,1.31523]
[1759780297038,0.00166264,4702.7,4702.6,1.10123]
[1759780297245,0.00166264,4702.7,4702.6,1.31523]
[1759780301746,0.43176264,4702.7,4702.6,0.7187]
[1759780301945,0.43176264,4702.7,4702.6,0.7348]
[1759780302754,0.21936264,4702.7,4702.6,0.7348]
[1759780303644,0.38256,4702.2,4702.1,0.5246]
[1759780303853,1.02676,4702.2,4702.1,0.518]
[1759780304048,0.81266,4702.2,4702.1,0.9574]
[1759780306552,0.60026,4702.2,4702.1,0.9574]
[1759780308052,0.81266,4702.2,4702.1,0.7434]
[1759780308248,0.81266,4702.2,4702.1,0.9574]
[1759780312756,0.60026,4702.2,4702.1,0.9574]
[1759780312952,0.38255,4702.4,4702.3,1.12375]
[1759780313150,0.38419264,4702.7,4702.5,0.38254]
[1759780313356,0.00166264,4702.7,4702.6,0.9552]
[1759780316856,3.2078,4703.5,4703.4,0.38247]
[1759780317158,3.74004238,4703.5,4703.4,1.33767]
[1759780317352,3.2078,4703.5,4703.4,1.33767]
[1759780318053,0.00211854,4703.5,4703.4,1.3395868]
[1759780319448,0.00211854,4703.5,4703.4,0.7431168]
[1759780319654,0.00211854,4703.5,4703.4,0.9571168]
[1759780321052,0.00211854,4703.5,4703.4,0.7431168]
[1759780321248,0.00211854,4703.5,4703.4,0.9571168]
[1759780322059,3.59017,4704.6,4704.1,0.38241]
[1759780322359,3.2078,4704.6,4704.5,0.8672]
[1759780322850,3.59013,4705.1,4705.0,0.2068]
[1759780323051,3.2100218,4705.1,4705.0,1.0812]
[1759780323258,3.2078,4705.8,4705.7,0.7412]
[1759780323460,3.73925508,4705.8,4705.7,0.9552]
[1759780323756,3.2078,4705.8,4705.7,0.9552]
[1759780324261,3.4312957,4705.8,4705.7,0.9552]
[1759780325160,3.6433957,4705.8,4705.7,0.7412]
[1759780325355,0.4332,4705.6,4705.5,0.4591]
[1759780325555,0.6499,4705.6,4705.5,0.6659]
[1759780325761,0.4332,4705.6,4705.5,0.8672]
[1759780325964,0.38228,4705.7,4705.5,0.5341]
[1759780326260,3.4312957,4705.8,4705.7,0.7412]
[1759780327654,3.6433957,4705.8,4705.7,0.7412]
[1759780329657,3.2101957,4705.8,4705.7,0.7412]
[1759780330062,0.0023957,4705.8,4705.7,0.7412]
[1759780331661,0.0023957,4705.8,4705.7,5.7412]
[1759780332960,0.0023957,4705.8,4705.7,5.9552]
[1759780333356,0.2234957,4705.8,4705.7,0.7412]
[1759780333556,0.0023957,4705.8,4705.7,0.9552]
[1759780336755,0.6522957,4705.8,4705.7,0.5399]
[1759780336961,0.6522957,4705.8,4705.7,0.7539]
[1759780337165,0.4355957,4705.8,4705.7,0.9552]
[1759780337361,0.4355957,4705.8,4705.7,0.7539]
[1759780337965,0.4355957,4705.8,4705.7,0.9552]
[1759780338967,0.0023957,4705.8,4705.7,0.9552]
[1759780339168,0.2226957,4705.8,4705.7,0.9552]
[1759780339561,0.95572,4705.7,4705.2,0.3196]
[1759780339766,0.80911,4705.3,4705.2,0.7479]
[1759780340069,0.80911,4705.3,4705.2,0.9619]
[1759780341569,1.02571,4705.3,4705.2,0.5336]
[1759780341770,0.80913,4705.1,4705.0,0.4456]
[1759780341963,1.02573,4705.1,4705.0,0.6596]
[1759780342363,0.80913,4705.1,4705.0,0.8709]
[1759780342869,0.80913,4705.1,4705.0,1.0879]
[1759780344465,0.80917,4704.6,4704.5,0.8739]
[1759780344662,0.60267,4704.6,4704.5,1.0879]
[1759780344867,0.4268,4705.1,4705.0,0.8723]
[1759780345069,1.17444345,4705.1,4705.0,0.3196]
[1759780345566,1.17444345,4705.1,4705.0,0.6553]
[1759780346367,0.95784345,4705.1,4705.0,0.8723]
[1759780347671,0.53104345,4705.1,4705.0,0.8723]
[1759780349967,0.38232,4705.2,4705.1,0.7479]
[1759780350170,0.91470401,4705.2,4705.1,0.7479]
[1759780350670,0.53238401,4705.2,4705.1,0.7479]
[1759780350871,0.53238401,4705.2,4705.1,0.81062]
[1759780351072,0.38231,4705.3,4705.2,0.7479]
[1759780351274,1.13505984,4705.3,4703.4,0.16912836]
[1759780351467,0.8903,4702.0,4701.4,6.4652492]
[1759780351767,0.8903,4702.0,4701.1,0.214]
[1759780351768,0.3321,4701.7,4701.1,0.214]
[1759780351972,0.3517,4701.5,4701.2,0.097]
[1759780352169,0.3321,4701.4,4701.3,0.097]
[1759780352368,0.55392396,4701.4,4701.3,0.0873442]
[1759780353172,0.76042396,4701.4,4701.3,0.0873442]
[1759780353368,0.76042396,4701.4,4701.3,0.0023442]
[1759780353672,0.3321,4700.3,4699.9,0.38275]
[1759780353873,0.3517,4700.5,4700.0,0.047]
[1759780354075,0.1314,4700.5,4700.2,0.38272]
[1759780354273,0.4635,4701.0,4700.4,0.38271]
[1759780354570,0.3321,4700.9,4700.5,0.3827]
[1759780354771,0.1314,4701.0,4700.6,0.59669]
[1759780354966,0.3321,4700.9,4700.6,0.59669]
[1759780355471,0.3517,4701.0,4700.6,0.214]
[1759780355669,0.3321,4700.8,4700.6,0.214]
[1759780355871,0.3321,4700.9,4700.6,0.214]
[1759780356177,0.1314,4701.0,4700.6,0.214]
[1759780356577,0.3326,4700.8,4700.6,0.214]
[1759780356778,0.2053,4700.7,4700.6,0.214]
[1759780356979,0.8891,4700.5,4700.4,0.00197439]
[1759780357171,0.8891,4700.5,4700.4,0.21597439]
[1759780357780,0.6708,4700.5,4700.4,0.21597439]
[1759780360273,0.8891,4700.5,4700.4,0.21597439]
[1759780364179,0.8891,4700.5,4700.4,0.00197439]
[1759780364384,0.8891,4700.5,4700.4,0.21597439]
[1759780367284,0.8891,4700.5,4700.4,0.00197439]
[1759780367483,0.8891,4700.5,4700.4,0.21597439]
[1759780374594,0.8891,4700.5,4700.4,0.00197439]
[1759780374783,0.8891,4700.5,4700.4,0.21597439]
[1759780377199,0.8891,4700.5,4700.4,0.59868439]
[1759780380607,0.8891,4700.5,4700.4,0.38468439]
[1759780380800,0.8891,4700.5,4700.4,0.59868439]
[1759780381306,1.43420557,4700.5,4700.4,0.59868439]
[1759780385008,1.81690557,4700.5,4700.4,0.00197439]
[1759780385305,1.81690557,4700.5,4700.4,0.21597439]
[1759780385895,0.732,4699.8,4699.7,3.59057]
[1759780386102,1.27710557,4699.8,4699.7,3.80457]
[1759780386300,0.732,4699.7,4699.6,0.38277]
[1759780386507,1.27710557,4699.7,4699.6,0.59677]
[1759780386903,1.27710557,4699.7,4699.6,0.59856658]
[1759780387502,1.27710557,4699.7,4699.6,0.21579658]
[1759780389806,1.27710557,4699.7,4699.6,0.48479658]
[1759780392198,1.27710557,4699.7,4699.6,0.35029658]
[1759780393009,1.30640653,4699.7,4699.6,0.35029658]
[1759780393210,1.30640653,4699.7,4699.6,0.21579658]
[1759780393811,1.30640653,4699.7,4699.6,0.59857658]
[1759780396207,0.76130096,4699.7,4699.6,0.59857658]
[1759780400106,0.76130096,4699.7,4699.6,0.73317658]
[1759780401610,0.76130096,4699.7,4699.6,0.59857658]
[1759780405410,0.732,4699.7,4699.6,0.59857658]
[1759780405617,0.79060192,4699.7,4699.6,0.00179658]
[1759780405918,0.79060192,4699.7,4699.6,0.21579658]
[1759780406120,0.79060192,4699.7,4699.6,0.59857658]
[1759780406310,0.79060192,4699.7,4699.6,0.73317658]
[1759780406913,0.79060192,4699.7,4699.6,0.59857658]
[1759780407519,0.36430192,4699.7,4699.6,0.95187658]
[1759780407714,0.05860192,4699.7,4699.6,5.95187658]
[1759780407910,0.1329,4700.5,4700.3,0.60142]
[1759780408111,0.5557,4701.0,4700.9,0.65187]
[1759780408418,0.5557,4701.0,4700.9,0.59667]
[1759780408619,0.8704,4701.0,4700.9,0.59667]
[1759780410312,0.8704,4701.0,4700.9,0.73127]
[1759780410718,0.8704,4701.0,4700.9,0.59667]
[1759780414211,0.8704,4701.0,4700.9,0.86587]
[1759780414514,0.00152396,4701.4,4701.3,0.65184]
[1759780414515,0.31622396,4701.4,4701.3,0.65184]
[1759780414714,0.31622396,4701.4,4701.3,0.94994]
[1759780415116,0.31622396,4701.4,4701.3,1.0511366]
[1759780415714,0.31622396,4701.4,4701.3,0.9670366]
[1759780416917,0.52392396,4701.4,4701.3,0.86584]
[1759780417122,0.72912396,4701.4,4701.3,0.86584]
[1759780418022,0.72912396,4701.4,4701.3,0.73124]
[1759780418223,0.72912396,4701.4,4701.3,0.86564]
[1759780418523,0.52392396,4701.4,4701.3,0.86564]
[1759780418717,0.72912396,4701.4,4701.3,0.86564]
[1759780421726,0.72912396,4701.4,4701.3,0.65164]
[1759780421913,0.72912396,4701.4,4701.3,0.86564]
[1759780425529,0.72912396,4701.4,4701.3,4.07344]
[1759780426331,0.72912396,4701.4,4701.3,3.59044]
[1759780426526,0.72912396,4701.4,4701.3,3.80444]
[1759780426732,0.72912396,4701.4,4701.3,0.38264]
[1759780426925,0.72912396,4701.4,4701.3,0.59664]
[1759780427728,0.72912396,4701.4,4701.3,0.38264]
[1759780427926,0.72912396,4701.4,4701.3,0.59664]
[1759780435337,0.2208,4702.0,4701.9,1.12349]
[1759780435530,0.2208,4702.0,4701.9,4.54529]
[1759780436231,0.22337104,4702.0,4701.9,4.54529]
[1759780436431,0.00257104,4702.0,4701.9,4.54529]
[1759780438236,0.031872,4702.0,4701.9,4.54529]
[1759780440430,0.252672,4702.0,4701.9,4.33129]
[1759780440635,0.572372,4702.0,4701.9,4.54529]
[1759780441938,0.572372,4702.0,4701.9,4.33129]
[1759780442139,0.572372,4702.0,4701.9,4.54529]
[1759780445139,0.031872,4702.0,4701.9,4.54529]
[1759780446539,0.00257104,4702.0,4701.9,4.54529]
[1759780446736,0.06117296,4702.0,4701.9,4.54529]
[1759780448146,0.82187296,4702.0,4701.9,4.54529]
[1759780448339,0.94787296,4702.0,4701.9,4.54529]
[1759780448736,0.82187296,4702.0,4701.9,4.54529]
[1759780449150,0.82187296,4702.0,4701.9,1.33749]
[1759780449344,0.94787296,4702.0,4701.9,0.80909]
[1759780449547,0.62817296,4702.0,4701.7,0.3826]
[1759780449841,0.8867,4701.5,4701.4,3.2078]
[1759780450042,0.8867,4701.5,4701.4,3.4218]
[1759780450350,0.126,4700.5,4700.4,0.38271]
[1759780450641,0.94530192,4700.5,4700.4,1.33761]
[1759780450843,0.94530192,4700.5,4700.4,1.02181]
[1759780451439,0.94530192,4700.5,4700.4,1.33761]
[1759780451641,0.05860192,4700.5,4700.4,1.33761]
[1759780452038,0.05860192,4700.5,4700.3,3.59052]
[1759780452039,0.27940192,4700.5,4700.3,3.59052]
[1759780452235,0.05860192,4700.5,4700.4,0.214]
[1759780452438,0.05860192,4700.5,4700.4,0.9549]
[1759780457742,0.5405,4701.9,4701.8,0.8077]
[1759780458045,0.5405,4701.9,4701.8,1.0217]
[1759780458443,0.5405,4701.9,4701.8,1.3237]
[1759780459453,0.7446,4701.9,4701.8,1.3237]
[1759780459653,0.7446,4701.9,4701.8,1.0217]
[1759780460349,0.7446,4701.9,4701.8,1.3237]
[1759780460650,0.7551,4701.8,4701.7,3.5904]
[1759780460853,0.7551,4701.8,4701.7,3.8044]
[1759780461643,0.78440096,4701.8,4701.7,4.014]
[1759780461853,0.78440096,4701.8,4701.7,4.5345]
[1759780464457,0.78440096,4701.8,4701.7,4.2325]
[1759780464656,0.78440096,4701.8,4701.7,4.5345]
[1759780465255,0.58030096,4701.8,4701.7,4.5345]
[1759780465760,0.78440096,4701.8,4701.7,4.5345]
[1759780470269,0.02930096,4701.8,4701.7,4.5345]
[1759780470868,0.36160096,4701.8,4701.7,4.5345]
[1759780471470,0.58030096,4701.8,4701.7,4.5345]
[1759780472569,0.60960192,4701.8,4701.7,4.5345]
[1759780472768,0.81370192,4701.8,4701.7,4.5345]
[1759780475872,0.60960192,4701.8,4701.7,4.5345]
[1759780476765,0.27730192,4701.8,4701.7,4.5345]
[1759780476971,0.05860192,4701.8,4701.7,4.5345]
[1759780478067,0.95614,4703.6,4701.7,4.5345]
[1759780478068,0.4204,4703.4,4703.3,0.90427]
[1759780478272,0.4204,4703.4,4703.3,1.31837]
[1759780478571,0.7286,4703.4,4703.3,1.31837]
[1759780479171,0.73058157,4703.4,4703.3,1.32065696]
[1759780480268,0.73058157,4703.4,4703.3,0.21628696]
[1759780480762,0.73058157,4703.4,4703.3,0.41638696]
[1759780480964,0.00198157,4703.4,4703.3,0.93818696]
[1759780481163,3.9364,4704.2,4704.1,0.4061]
[1759780481363,3.9364,4704.2,4704.1,0.9359]
[1759780481575,3.9364,4704.2,4704.1,0.6201]
[1759780481765,3.9364,4704.2,4704.1,0.4141]
[1759780481965,0.7286,4704.2,4704.1,0.4141]
[1759780482167,0.73107096,4704.2,4704.1,1.00251]
[1759780483872,0.73107096,4704.2,4704.1,1.31831]
[1759780486372,0.73107096,4704.2,4704.1,1.00251]
[1759780486577,0.5442,4704.0,4703.9,0.38242]
[1759780486875,0.8524,4704.0,4703.9,0.79652]
[1759780487574,0.8524,4704.0,4703.9,1.11232]
[1759780489478,0.8524,4704.0,4703.9,1.31832]
[1759780490175,0.8524,4704.0,4703.9,1.31833]
[1759780490375,0.8524,4704.0,4703.9,0.214]
[1759780490879,0.8524,4704.0,4703.9,0.4187]
[1759780493581,0.8524,4704.0,4703.9,0.7344]
[1759780495181,1.23482,4704.0,4703.9,0.2047]
[1759780495476,0.8524,4704.0,4703.9,0.214]
[1759780495879,0.8524,4704.0,4703.9,0.80113]
[1759780496081,0.8524,4704.0,4703.9,0.59643]
[1759780496476,0.8524,4704.0,4703.9,0.214]
[1759780496678,0.8524,4704.0,4703.9,0.59643]
[1759780499278,0.8524,4704.0,4703.9,0.38243]
[1759780499485,0.8524,4704.0,4703.9,0.80113]
[1759780500274,0.00247096,4704.2,4704.0,0.1304]
[1759780500474,0.00247096,4704.2,4704.1,1.12441]
[1759780501381,0.00247096,4704.2,4704.1,1.33841]
[1759780503884,0.76927096,4704.2,4704.1,0.956]
[1759780504078,3.97707096,4704.2,4704.1,0.742]
[1759780504284,3.97707096,4704.2,4701.5,1.91311]
[1759780504285,0.4395,4703.4,4702.0,5.43437635]
[1759780504486,0.5481,4701.7,4701.6,1.33861]
[1759780504685,0.2208,4702.2,4702.1,0.4263]
[1759780504890,0.7668,4702.9,4702.8,0.2047]
[1759780505390,0.7668,4702.9,4702.8,0.00262217]
[1759780506390,0.7668,4702.9,4702.8,0.20732217]
[1759780507681,0.7668,4702.9,4702.8,0.74462217]
[1759780507884,3.2078,4703.0,4702.9,0.38251]
[1759780508188,3.7559,4703.0,4702.9,1.12451]
[1759780508492,3.9746,4703.0,4702.9,1.12451]
[1759780509292,4.0968,4703.0,4702.9,1.12451]
[1759780509479,0.889,4703.0,4702.9,1.12451]
[1759780510080,1.2715,4703.0,4702.8,0.00262217]
[1759780510288,3.9746,4702.9,4702.8,0.00262217]
[1759780510488,0.7668,4702.9,4702.8,0.74462217]
[1759780510889,0.7668,4702.9,4702.8,0.42892217]
[1759780512385,0.7668,4702.9,4702.8,0.74462217]
[1759780513191,0.7668,4702.9,4702.8,0.42892217]
[1759780513391,0.7668,4702.9,4702.8,0.81144217]
[1759780513592,0.7668,4702.9,4702.8,0.42892217]
[1759780516194,0.7668,4702.9,4702.8,0.74462217]
[1759780516893,0.7668,4702.9,4702.8,0.42892217]
[1759780517091,0.7668,4702.9,4702.8,0.21662217]
[1759780517485,0.4395,4703.5,4703.4,1.12447]
[1759780517689,0.00247096,4704.2,4704.1,1.12441]
[1759780517888,0.22327096,4704.2,4704.1,1.33841]
[1759780518090,0.00247096,4704.2,4704.1,1.33841]
[1759780518588,0.2183,4705.1,4705.0,0.42]
[1759780518788,0.7305,4705.6,4705.5,0.753]
[1759780518991,3.511,4705.8,4705.7,0.753]
[1759780519194,3.7293,4705.8,4705.7,0.753]
[1759780519490,3.9383,4705.8,4705.2,0.333]
[1759780519689,0.7305,4705.4,4705.3,0.419]
[1759780521392,0.3032,4704.9,4704.5,0.58737]
[1759780521594,0.7305,4704.6,4704.3,0.38239]
[1759780521788,0.1329,4705.0,4703.8,3.2078]
[1759780521789,0.2183,4703.9,4703.8,3.4128]
[1759780522092,0.7305,4703.9,4703.8,0.419]
[1759780523097,0.7305,4703.9,4703.8,0.634]
[1759780523396,0.7305,4703.9,4703.8,0.967]
[1759780523902,0.7305,4703.9,4703.8,0.634]
[1759780524796,0.4273,4703.9,4703.5,0.71546]
[1759780525097,0.7305,4703.7,4703.6,0.419]
[1759780525295,0.7305,4703.7,4703.6,0.967]
[1759780525997,3.2078,4704.7,4704.5,0.38238]
[1759780526197,0.1329,4705.5,4705.2,1.13532]
[1759780526198,3.9383,4705.3,4705.2,1.13532]
[1759780526399,3.9383,4705.3,4705.2,1.34932]
[1759780526597,3.4261,4705.3,4705.2,1.34932]
[1759780526799,3.2078,4705.3,4705.2,1.34932]
[1759780526994,0.214,4706.8,4705.2,1.34932]
[1759780526995,3.511,4706.3,4705.7,0.71528]
[1759780527296,0.3032,4706.2,4705.7,0.753]
[1759780527497,0.73274508,4705.8,4705.7,0.967]
[1759780527697,0.73274508,4705.8,4705.7,0.205]
[1759780527900,0.73274508,4705.8,4705.7,0.214]
[1759780529095,0.3032,4705.7,4705.4,0.3823]
[1759780529302,0.7305,4705.5,4705.4,0.5873]
[1759780529498,0.7305,4705.5,4705.4,0.8013]
[1759780531406,0.8634,4705.5,4705.3,0.38231]
[1759780531605,0.8634,4705.5,4705.4,0.214]
[1759780531998,0.8634,4705.5,4705.4,0.967]
[1759780531999,0.7305,4705.5,4705.4,0.967]
[1759780532307,0.2183,4705.5,4705.4,0.967]
[1759780532501,0.00224508,4705.8,4705.7,0.753]
[1759780532700,0.00224508,4705.8,4705.7,1.13528]
[1759780533001,3.511,4706.9,4706.8,0.38219]
[1759780533198,3.7293,4706.9,4706.8,1.34919]
[1759780533396,3.9383,4706.9,4706.8,0.634]
[1759780533596,3.9383,4706.9,4706.8,0.205]
[1759780533802,3.9383,4706.9,4706.5,0.38221]
[1759780534004,0.4273,4706.7,4706.6,0.214]
[1759780534198,0.7305,4706.7,4706.6,0.214]
[1759780536809,0.7305,4706.7,4706.6,0.9466]
[1759780538014,0.3032,4706.7,4706.6,0.9466]
[1759780538211,0.213,4706.8,4706.7,0.3822]
[1759780538518,0.5148,4706.8,4706.7,0.8088]
[1759780538719,0.7253,4706.8,4706.7,0.8088]
[1759780538919,0.7253,4706.8,4706.7,1.1201]
[1759780539514,0.0019573,4706.9,4706.8,0.5216]
[1759780539716,0.3018,4707.6,4706.8,0.4266]
[1759780539917,0.022,4707.9,4707.8,1.12001]
[1759780540226,0.022,4707.9,4707.8,1.33401]
[1759780540815,0.02419475,4707.9,4707.8,1.33401]
[1759780542924,0.02419475,4707.9,4707.8,0.9519]
[1759780544825,0.02419475,4707.9,4707.8,0.7379]
[1759780545020,0.02419475,4707.9,4707.8,0.9519]
[1759780545621,0.02419475,4707.9,4707.8,0.7379]
[1759780545815,0.02419475,4707.9,4707.8,0.9519]
[1759780546022,0.74949475,4707.9,4707.3,0.3113]
[1759780546323,4.13484,4707.5,4707.4,0.214]
[1759780546524,0.4235,4707.0,4706.9,0.80878]
[1759780546725,0.8467,4707.0,4706.9,0.2103]
[1759780547030,0.5148,4706.6,4706.5,0.73963981]
[1759780547223,0.213,4706.6,4706.5,0.95363981]
[1759780547929,0.5148,4706.6,4706.5,0.95363981]
[1759780550716,0.213,4706.6,4706.5,0.95363981]
[1759780551122,0.213,4706.6,4706.5,0.73963981]
[1759780551324,0.213,4706.6,4706.5,0.95363981]
[1759780551731,0.3053,4708.2,4707.6,0.3241]
[1759780551927,0.3053,4708.2,4707.5,0.5541]
[1759780551928,0.3053,4708.2,4707.8,0.7548]
[1759780552229,3.3292,4708.5,4707.8,0.7548]
[1759780552426,0.3053,4708.6,4707.8,0.7548]
[1759780553829,3.8624,4709.0,4708.9,0.2201]
[1759780554122,4.61198334,4709.0,4708.9,0.4341]
[1759780554319,4.48428334,4709.0,4708.9,0.9688]
[1759780554522,3.73948334,4709.0,4708.9,0.9688]
[1759780554724,3.74170095,4709.0,4708.9,0.9688]
[1759780555326,4.26860095,4709.0,4708.9,0.9688]
[1759780555726,1.06080095,4709.0,4708.9,0.9688]
[1759780556521,0.75550095,4709.0,4708.9,0.9688]
[1759780556727,0.53390095,4709.0,4708.9,0.9688]
[1759780557128,0.00221761,4709.0,4708.9,0.9688]
[1759780557624,0.22381761,4709.0,4708.9,0.7548]
[1759780557820,0.22381761,4709.0,4708.9,0.9688]
[1759780557821,0.52911761,4709.0,4708.9,0.9688]
[1759780558123,1.06122217,4709.0,4708.9,0.9688]
[1759780558525,1.40682217,4709.0,4708.9,0.4307]
[1759780558729,0.2216,4708.6,4708.5,0.7548]
[1759780558921,0.2216,4708.6,4708.5,0.9688]
[1759780559228,0.7448,4708.6,4708.5,0.9688]
[1759780559425,0.7448,4708.6,4708.5,0.6447]
[1759780559825,0.7448,4708.6,4708.5,0.2201]
[1759780560128,1.27692277,4708.6,4708.5,0.4341]
[1759780560527,0.75372277,4708.6,4708.5,0.9688]
[1759780560726,0.5269,4708.6,4708.5,0.9688]
[1759780561332,0.2216,4708.6,4708.5,0.9688]
[1759780561532,0.38203,4708.8,4708.5,0.8782]
[1759780561729,0.53235039,4708.7,4708.6,0.9688]
[1759780562340,0.00221761,4709.0,4708.9,0.4307]
[1759780562530,0.00221761,4709.0,4708.9,0.9688]
[1759780562833,0.53470172,4709.0,4708.9,0.9688]
[1759780563334,0.75630172,4709.0,4708.9,0.9688]
[1759780563736,1.06160172,4709.0,4708.9,4.1766]
[1759780563938,0.53470172,4709.0,4708.9,4.1766]
[1759780566136,0.75630172,4709.0,4708.9,34.0998]
[1759780567029,1.78921172,4709.0,4708.9,0.2201]
[1759780567227,1.78921172,4709.0,4708.5,0.3241]
[1759780567430,0.7448,4708.6,4708.5,0.2201]
[1759780567627,1.27728411,4708.6,4708.5,0.4331]
[1759780568230,0.7448,4708.0,4707.9,3.4279]
[1759780568537,0.5269,4708.0,4707.9,4.1756]
[1759780569334,3.33771761,4709.0,4708.3,0.3241]
[1759780569534,0.5269,4708.7,4708.6,0.7548]
[1759780569838,3.33771761,4709.0,4708.7,0.3241]
[1759780570037,3.86461761,4709.0,4708.9,0.7548]
[1759780570234,3.86461761,4709.0,4708.9,0.9678]
[1759780570235,1.06239062,4709.0,4708.9,0.9678]
[1759780570534,0.75187028,4709.0,4708.9,0.9678]
[1759780571237,0.53027028,4709.0,4708.9,0.9678]
[1759780572430,0.00221761,4709.0,4708.9,0.9678]
[1759780572635,0.00221761,4709.0,4708.9,0.7548]
[1759780572836,0.00221761,4709.0,4708.9,34.0968]
[1759780573036,1.27054804,4709.0,4708.9,0.7548]
[1759780573344,0.7448,4708.6,4708.5,0.4307]
[1759780573640,0.7448,4708.6,4708.5,0.9678]
[1759780573843,0.7448,4708.6,4708.5,0.4307]
[1759780574042,0.7448,4708.6,4708.5,0.213]
[1759780574335,0.7448,4708.6,4707.9,3.4279]
[1759780574336,0.8725,4708.0,4707.9,3.4279]
[1759780574537,0.5269,4708.0,4707.9,4.1756]
[1759780574741,0.7448,4708.3,4708.2,0.2201]
[1759780575136,0.7448,4708.3,4708.2,0.4331]
[1759780575736,0.3053,4708.6,4708.2,0.213]
[1759780575937,0.52911761,4709.0,4708.9,0.4307]
[1759780576137,0.52911761,4709.0,4708.4,3.2078]
[1759780576138,1.39828478,4709.0,4708.4,3.2078]
[1759780576339,0.2216,4708.6,4708.5,0.9678]
[1759780576541,0.3053,4708.9,4708.6,0.3241]
[1759780576842,0.5269,4708.9,4708.8,0.7548]
[1759780577042,0.5269,4708.9,4708.8,0.9678]
[1759780577637,0.7448,4708.9,4708.8,0.9678]
[1759780577839,0.7448,4708.9,4708.8,0.6437]
[1759780578645,1.26886652,4708.9,4708.8,0.6437]
[1759780580448,1.26886652,4708.9,4708.8,0.9516]
[1759780580449,0.52406652,4708.9,4708.8,0.9516]
[1759780580645,0.00221761,4709.0,4708.9,1.12352]
[1759780580948,0.00221761,4709.0,4708.9,4.33132]
[1759780581149,0.00221761,4709.0,4708.9,1.12352]
[1759780581449,0.86441761,4709.0,4708.9,0.6466]
[1759780581649,1.38913221,4709.0,4708.9,0.6466]
[1759780582142,1.26253221,4709.0,4708.9,0.9545]
[1759780582347,0.52693221,4709.0,4708.9,0.9545]
[1759780583750,0.52693221,4709.0,4708.9,0.7415]
[1759780583954,1.06033221,4709.0,4708.9,0.9545]
[1759780585251,0.53561761,4709.0,4708.9,0.9545]